bitfinex/quotes_BTCUSD_20250114
["timestamp","ask_amount","ask_price","bid_price","bid_amount"]
[1736852006374,0.00479299,96784.0,96783.0,0.81687564]
[1736852006606,0.00479299,96784.0,96783.0,2.31687564]
[1736852006792,0.00479299,96784.0,96783.0,2.14356236]
[1736852006999,0.00479299,96784.0,96783.0,2.09636236]
[1736852007249,0.00379299,96784.0,96783.0,2.09636236]
[1736852007476,0.00379299,96784.0,96783.0,2.11286136]
[1736852008112,0.00379299,96784.0,96783.0,2.11186136]
[1736852008597,0.00179299,96784.0,96783.0,2.11186136]
[1736852008922,0.00179299,96784.0,96783.0,2.11486136]
[1736852009124,0.00179299,96784.0,96783.0,2.11186136]
[1736852009582,0.00179299,96784.0,96783.0,2.11486136]
[1736852010383,0.00179299,96784.0,96783.0,2.11586136]
[1736852013841,0.00179299,96784.0,96783.0,2.03616136]
[1736852014467,0.00179299,96784.0,96783.0,0.53616136]
[1736852014799,0.00179299,96784.0,96783.0,0.53216136]
[1736852014960,0.00279299,96784.0,96783.0,0.53216136]
[1736852015143,0.00279299,96784.0,96783.0,0.53316136]
[1736852016206,0.00279299,96784.0,96783.0,0.51766236]
[1736852016422,0.00179299,96784.0,96783.0,0.51766236]
[1736852018494,0.00179299,96784.0,96783.0,2.03313972]
[1736852018691,0.00179299,96784.0,96783.0,2.29315506]
[1736852019972,0.00179299,96784.0,96783.0,2.29515506]
[1736852020965,0.00179299,96784.0,96783.0,2.29415506]
[1736852021290,0.00279299,96784.0,96783.0,2.29815506]
[1736852032798,0.00179341,96800.0,96787.0,0.07968842]
[1736852033151,0.00179341,96800.0,96799.0,0.206613]
[1736852033535,0.00179341,96800.0,96799.0,0.20764591]
[1736852033741,0.00179341,96800.0,96799.0,1.70764591]
[1736852033949,0.00179341,96800.0,96799.0,1.706613]
[1736852034605,0.00179341,96800.0,96799.0,1.73178305]
[1736852035450,0.00179341,96800.0,96799.0,1.73578305]
[1736852036313,0.00179341,96800.0,96799.0,1.73678305]
[1736852036778,0.00179341,96800.0,96799.0,0.23678305]
[1736852037360,0.00179341,96800.0,96799.0,1.73678305]
[1736852037644,0.00179341,96800.0,96799.0,1.711613]
[1736852037868,0.00179341,96800.0,96799.0,1.73678558]
[1736852038566,0.00179341,96800.0,96799.0,1.74739507]
[1736852040888,0.00179341,96800.0,96799.0,1.82819507]
[1736852041138,0.00179341,96800.0,96799.0,1.74739507]
[1736852041725,0.00179341,96800.0,96799.0,1.85162199]
[1736852045997,0.00608,96813.0,96809.0,0.20659]
[1736852046615,0.00608,96813.0,96810.0,0.02517258]
[1736852047573,0.00808,96813.0,96810.0,0.02517258]
[1736852048000,0.00808,96813.0,96811.0,0.02517258]
[1736852048204,0.01008,96813.0,96811.0,0.02517258]
[1736852048408,0.01108,96813.0,96811.0,0.02517258]
[1736852048807,0.00608,96813.0,96812.0,0.00968176]
[1736852049238,0.00708,96813.0,96812.0,0.00968176]
[1736852049672,0.08448,96813.0,96812.0,0.00968176]
[1736852049875,0.10748,96813.0,96812.0,0.00968176]
[1736852050106,0.15698,96813.0,96812.0,0.00968176]
[1736852050314,0.15898,96813.0,96812.0,0.00968176]
[1736852050722,0.0784,96797.0,96792.0,0.01548645]
[1736852050877,0.0485,96796.0,96792.0,0.01548645]
[1736852051083,0.25512,96796.0,96792.0,0.01548645]
[1736852051711,0.46174,96796.0,96792.0,0.01548645]
[1736852051877,0.46174,96796.0,96792.0,0.01948645]
[1736852052269,0.46174,96796.0,96792.0,0.01748645]
[1736852052604,0.46174,96796.0,96793.0,0.00967883]
[1736852053940,0.46174,96796.0,96783.0,0.70301461]
[1736852054148,0.206629,96792.0,96783.0,0.70301461]
[1736852055094,0.206629,96792.0,96785.0,0.00967494]
[1736852055371,0.209629,96792.0,96785.0,0.00967494]
[1736852055577,0.211629,96792.0,96786.0,1.5]
[1736852055982,0.209629,96792.0,96786.0,1.5]
[1736852056154,0.206637,96788.0,96787.0,0.00967494]
[1736852056354,0.295417,96788.0,96787.0,0.00967494]
[1736852057365,0.298417,96788.0,96787.0,0.00967494]
[1736852057568,0.295417,96788.0,96787.0,0.00967494]
[1736852057747,0.295417,96788.0,96783.0,0.49636761]
[1736852057952,0.20664,96787.0,96783.0,0.49636761]
[1736852058482,0.41328,96787.0,96783.0,0.49636761]
[1736852058890,0.206643,96785.0,96783.0,0.49636761]
[1736852060452,0.208643,96785.0,96783.0,0.49636761]
[1736852060657,0.209643,96785.0,96783.0,0.49636761]
[1736852061848,0.362543,96785.0,96783.0,0.49636761]
[1736852062481,0.38285458,96785.0,96783.0,0.49636761]
[1736852073959,0.38893458,96785.0,96783.0,0.49636761]
[1736852074776,0.4931615,96785.0,96783.0,0.49636761]
[1736852075334,0.6431615,96785.0,96783.0,0.49636761]
[1736852077085,0.36593458,96785.0,96783.0,0.49636761]
[1736852077349,0.00908,96785.0,96783.0,0.49636761]
[1736852078018,0.00908,96785.0,96784.0,1.5008538]
[1736852078214,0.00908,96785.0,96784.0,0.0008538]
[1736852081039,0.003,96785.0,96784.0,0.0008538]
[1736852081241,0.00908,96785.0,96784.0,0.0008538]
[1736852081809,0.002,96785.0,96784.0,0.0008538]
[1736852082005,0.00808,96785.0,96784.0,0.0008538]
[1736852082240,0.00908,96785.0,96784.0,0.0008538]
[1736852082561,0.00608,96785.0,96784.0,0.0008538]
[1736852082963,0.00908,96785.0,96784.0,0.01053565]
[1736852083181,0.00708,96785.0,96784.0,0.01053565]
[1736852083610,0.00908,96785.0,96784.0,0.01053565]
[1736852087680,0.08678,96785.0,96784.0,0.01053565]
[1736852088445,0.00908,96785.0,96784.0,0.01053565]
[1736852089364,0.003,96785.0,96784.0,0.01053565]
[1736852093401,0.00908,96785.0,96784.0,0.01053565]
[1736852095268,0.003,96785.0,96784.0,0.01053565]
[1736852095415,0.00908,96785.0,96784.0,0.01053565]
[1736852114833,0.00908,96785.0,96784.0,0.0008538]
[1736852119350,0.3066185,96785.0,96784.0,0.0008538]
[1736852119623,0.3816185,96785.0,96784.0,0.0008538]
[1736852120080,0.4295185,96785.0,96784.0,0.0008538]
[1736852120782,0.4275185,96785.0,96784.0,0.0008538]
[1736852120979,0.4265185,96785.0,96784.0,0.0008538]
[1736852121179,0.56880763,96785.0,96784.0,0.0008538]
[1736852121387,0.56680763,96785.0,96784.0,0.0008538]
[1736852121792,0.57380763,96785.0,96784.0,0.0018538]
[1736852121996,0.4355185,96785.0,96784.0,0.0018538]
[1736852123073,0.4395185,96785.0,96784.0,0.0018538]
[1736852124600,0.4265185,96785.0,96784.0,0.0008538]
[1736852124877,0.4355185,96785.0,96784.0,0.0018538]
[1736852125052,0.4395185,96785.0,96784.0,0.0018538]
[1736852125380,0.4305185,96785.0,96784.0,0.0008538]
[1736852125538,0.4395185,96785.0,96784.0,0.0018538]
[1736852126170,0.4355185,96785.0,96784.0,0.0018538]
[1736852126507,0.4395185,96785.0,96784.0,0.0018538]
[1736852128810,0.64374542,96785.0,96784.0,0.0018538]
[1736852129143,0.62515658,96784.0,96783.0,0.41263221]
[1736852129279,0.7293835,96784.0,96783.0,0.39196721]
[1736852129777,0.8293835,96784.0,96783.0,0.39196721]
[1736852129979,0.8293835,96784.0,96783.0,0.37130221]
[1736852130094,0.93361042,96784.0,96783.0,0.30930721]
[1736852130293,0.93361042,96784.0,96783.0,0.28864221]
[1736852130500,0.94561042,96784.0,96783.0,0.28964221]
[1736852130701,0.95169042,96784.0,96783.0,0.28964221]
[1736852130950,0.93969042,96784.0,96783.0,0.20598221]
[1736852131123,0.94869042,96784.0,96783.0,0.18631721]
[1736852131337,0.95269042,96784.0,96783.0,0.18631721]
[1736852131928,0.95269042,96784.0,96783.0,0.16565221]
[1736852132405,1.18404287,96784.0,96783.0,0.16565221]
[1736852132573,1.20454674,96784.0,96783.0,0.16565221]
[1736852132779,1.10031982,96784.0,96783.0,0.16565221]
[1736852133310,0.86896737,96784.0,96783.0,0.16565221]
[1736852134194,0.76288737,96784.0,96783.0,0.16565221]
[1736852134394,0.6193835,96784.0,96783.0,0.16565221]
[1736852134557,0.6254635,96784.0,96783.0,0.16565221]
[1736852134755,0.78419273,96784.0,96783.0,0.16565221]
[1736852134961,0.79027273,96784.0,96783.0,0.16565221]
[1736852135259,0.81058431,96784.0,96783.0,0.16565221]
[1736852135481,0.6484635,96784.0,96783.0,0.16565221]
[1736852137753,0.64833914,96784.0,96783.0,0.16565221]
[1736852138362,0.62802756,96784.0,96783.0,0.16565221]
[1736852138562,0.64833914,96784.0,96783.0,0.16565221]
[1736852139627,0.74833914,96784.0,96783.0,0.16565221]
[1736852140570,0.72802756,96784.0,96783.0,0.16565221]
[1736852140832,0.74833914,96784.0,96783.0,0.16565221]
[1736852141027,0.92741791,96784.0,96783.0,0.16565221]
[1736852141230,0.84088726,96784.0,96783.0,0.16565221]
[1736852141824,0.74833914,96784.0,96783.0,0.16565221]
[1736852142870,0.88716133,96784.0,96783.0,0.16565221]
[1736852143430,0.88895432,96784.0,96783.0,0.16565221]
[1736852144636,0.75013213,96784.0,96783.0,0.16565221]
[1736852145062,0.78361221,96784.0,96783.0,0.16565221]
[1736852146092,1.01496466,96784.0,96783.0,0.16565221]
[1736852146294,1.11496466,96784.0,96783.0,0.06232421]
[1736852146654,0.88361221,96784.0,96783.0,0.06232421]
[1736852147294,0.88361221,96784.0,96783.0,0.02099221]
[1736852147496,0.57696558,96780.0,96779.0,3.5e-07]
[1736852147698,0.82678022,96780.0,96779.0,3.5e-07]
[1736852148823,1.01961478,96780.0,96779.0,3.5e-07]
[1736852149770,1.03882032,96780.0,96779.0,3.5e-07]
[1736852150129,0.85398576,96780.0,96779.0,3.5e-07]
[1736852150328,0.95821268,96780.0,96779.0,3.5e-07]
[1736852156484,0.95521268,96780.0,96779.0,3.5e-07]
[1736852156827,0.96121268,96780.0,96779.0,3.5e-07]
[1736852157240,0.95521268,96780.0,96779.0,3.5e-07]
[1736852157695,1.13804724,96780.0,96779.0,3.5e-07]
[1736852157898,1.14704724,96780.0,96779.0,3.5e-07]
[1736852158115,1.13804724,96780.0,96779.0,3.5e-07]
[1736852158309,0.95321268,96780.0,96779.0,3.5e-07]
[1736852158516,0.96221268,96780.0,96779.0,3.5e-07]
[1736852161929,0.96829268,96780.0,96779.0,3.5e-07]
[1736852162151,0.95208714,96780.0,96779.0,3.5e-07]
[1736852162342,0.84178022,96780.0,96779.0,3.5e-07]
[1736852162553,0.49628022,96780.0,96779.0,3.5e-07]
[1736852162753,0.35236022,96780.0,96779.0,3.5e-07]
[1736852163253,0.52536022,96780.0,96779.0,3.5e-07]
[1736852163393,0.49896864,96780.0,96779.0,3.5e-07]
[1736852163598,0.32596864,96780.0,96779.0,3.5e-07]
[1736852163850,0.33204864,96780.0,96779.0,3.5e-07]
[1736852164054,0.35236022,96780.0,96779.0,3.5e-07]
[1736852164249,0.49336022,96780.0,96779.0,3.5e-07]
[1736852164467,0.34336022,96780.0,96779.0,3.5e-07]
[1736852164664,0.22182172,96780.0,96779.0,3.5e-07]
[1736852164879,0.21282172,96780.0,96779.0,0.07700035]
[1736852165232,0.22182172,96780.0,96779.0,0.07700035]
[1736852165435,0.00616772,96780.0,96779.0,0.07700035]
[1736852166282,0.01516772,96780.0,96779.0,0.07700035]
[1736852166489,0.02116772,96780.0,96779.0,0.07700035]
[1736852166863,0.01516772,96780.0,96779.0,0.07700035]
[1736852167297,0.04016772,96780.0,96779.0,0.07700035]
[1736852167501,0.0604793,96780.0,96779.0,0.07700035]
[1736852167887,0.0514793,96780.0,96779.0,3.5e-07]
[1736852168263,0.0574793,96780.0,96779.0,3.5e-07]
[1736852169109,0.31170622,96780.0,96779.0,3.5e-07]
[1736852169667,0.39030622,96780.0,96779.0,3.5e-07]
[1736852171335,0.48278019,96780.0,96779.0,3.5e-07]
[1736852172371,0.39030622,96780.0,96779.0,3.5e-07]
[1736852174381,0.31170622,96780.0,96779.0,3.5e-07]
[1736852174587,0.30562622,96780.0,96779.0,3.5e-07]
[1736852174805,0.31170622,96780.0,96779.0,3.5e-07]
[1736852176046,0.41593314,96780.0,96779.0,3.5e-07]
[1736852176459,0.49493314,96780.0,96779.0,3.5e-07]
[1736852177113,0.67988109,96780.0,96779.0,3.5e-07]
[1736852177719,0.49493314,96780.0,96779.0,3.5e-07]
[1736852178497,0.72629867,96780.0,96779.0,3.5e-07]
[1736852181069,0.59493314,96780.0,96779.0,3.5e-07]
[1736852181336,0.53850622,96780.0,96779.0,3.5e-07]
[1736852181898,0.43850622,96780.0,96779.0,3.5e-07]
[1736852182103,0.43250622,96780.0,96779.0,3.5e-07]
[1736852182300,0.53250622,96780.0,96779.0,3.5e-07]
[1736852182655,0.53950622,96780.0,96779.0,3.5e-07]
[1736852182855,0.64973314,96780.0,96779.0,3.5e-07]
[1736852185128,0.47698258,96772.0,96771.0,5.2e-07]
[1736852185450,0.6832095,96772.0,96771.0,5.2e-07]
[1736852186091,0.47699058,96768.0,96767.0,7.2e-07]
[1736852186219,0.6042175,96768.0,96767.0,7.2e-07]
[1736852186609,0.83563438,96768.0,96767.0,7.2e-07]
[1736852187426,0.83963438,96768.0,96767.0,7.2e-07]
[1736852188667,0.84863438,96768.0,96767.0,7.2e-07]
[1736852189072,0.6172175,96768.0,96767.0,7.2e-07]
[1736852189317,0.72144442,96768.0,96767.0,7.2e-07]
[1736852189946,0.73195448,96768.0,96767.0,7.2e-07]
[1736852190741,0.96337136,96768.0,96767.0,7.2e-07]
[1736852190917,0.96337136,96768.0,96767.0,0.00085452]
[1736852191337,0.73195448,96768.0,96767.0,0.00085452]
[1736852196680,0.91718927,96768.0,96767.0,0.00085452]
[1736852197360,0.73195448,96768.0,96767.0,0.00085452]
[1736852198645,0.91718285,96768.0,96767.0,5.2e-07]
[1736852199777,0.52772756,96768.0,96767.0,5.2e-07]
[1736852200002,0.48441598,96768.0,96767.0,5.2e-07]
[1736852200166,0.47998592,96768.0,96767.0,5.2e-07]
[1736852200362,0.5002975,96768.0,96767.0,5.2e-07]
[1736852200568,0.3732975,96768.0,96767.0,5.2e-07]
[1736852200885,0.5232975,96768.0,96767.0,5.2e-07]
[1736852201876,0.379684,96766.0,96765.0,0.00169413]
[1736852202073,0.48391092,96766.0,96765.0,0.00169413]
[1736852202281,0.5042225,96766.0,96765.0,0.00169413]
[1736852203463,0.5042225,96766.0,96741.0,0.03098642]
[1736852203464,0.206735,96742.0,96741.0,0.03098642]
[1736852203679,0.33396192,96742.0,96741.0,0.03098642]
[1736852203813,0.33396192,96742.0,96741.0,0.00687253]
[1736852204024,0.206731,96744.0,96738.0,0.0752]
[1736852204025,0.206738,96741.0,96738.0,0.0752]
[1736852204229,0.206741,96739.0,96738.0,0.0752]
[1736852204435,0.206741,96739.0,96738.0,0.0751]
[1736852204862,0.206741,96739.0,96738.0,0.0756001]
[1736852206169,0.206741,96739.0,96738.0,0.0766001]
[1736852206589,0.206741,96739.0,96738.0,0.0756001]
[1736852207079,0.207741,96739.0,96738.0,0.0756001]
[1736852207722,0.210741,96739.0,96738.0,0.0756001]
[1736852212679,0.23105258,96739.0,96738.0,0.0756001]
[1736852213650,0.25405258,96739.0,96738.0,0.0756001]
[1736852213885,0.25405258,96739.0,96738.0,0.0005001]
[1736852214257,0.25405258,96739.0,96738.0,0.0013543]
[1736852214670,0.2558464,96739.0,96738.0,0.0013543]
[1736852216981,0.4058464,96739.0,96738.0,0.0013543]
[1736852217196,0.4119264,96739.0,96738.0,0.0013543]
[1736852218530,0.51615332,96739.0,96738.0,0.0013543]
[1736852221338,0.59225332,96739.0,96738.0,0.0013543]
[1736852222836,0.7745137,96739.0,96738.0,0.0013543]
[1736852223197,0.7835137,96739.0,96738.0,0.0013543]
[1736852223746,0.7064137,96739.0,96738.0,0.0013543]
[1736852224153,0.66710212,96739.0,96738.0,0.0013543]
[1736852224381,0.50215332,96739.0,96738.0,0.0013543]
[1736852224532,0.48915332,96739.0,96738.0,0.0013543]
[1736852224715,0.3849264,96739.0,96738.0,0.0013543]
[1736852224906,0.4209264,96739.0,96738.0,0.0013543]
[1736852225102,0.4119264,96739.0,96738.0,0.0013543]
[1736852225419,0.4169264,96739.0,96738.0,0.0013543]
[1736852225613,0.4199264,96739.0,96738.0,0.0013543]
[1736852225815,0.4109264,96739.0,96738.0,0.0013543]
[1736852226247,0.4189264,96739.0,96738.0,0.0013543]
[1736852226995,0.52315332,96739.0,96738.0,0.0013543]
[1736852230639,0.75028024,96739.0,96738.0,0.0013543]
[1736852231216,0.64605332,96739.0,96738.0,0.0013543]
[1736852231441,0.67388345,96739.0,96738.0,0.0013543]
[1736852231641,0.64605332,96739.0,96738.0,0.0013543]
[1736852232503,0.63805332,96739.0,96738.0,0.0013543]
[1736852232929,0.64705332,96739.0,96738.0,0.0013543]
[1736852233153,0.64405332,96739.0,96738.0,0.0013543]
[1736852233350,0.74828024,96739.0,96738.0,0.0013543]
[1736852233570,0.75228024,96739.0,96738.0,0.0013543]
[1736852233901,0.74828024,96739.0,96738.0,0.0013543]
[1736852234105,0.75428024,96739.0,96738.0,0.0013543]
[1736852234316,0.74528024,96739.0,96738.0,0.0013543]
[1736852234537,0.75428024,96739.0,96738.0,0.0013543]
[1736852234747,0.74828024,96739.0,96738.0,0.0013543]
[1736852235060,0.83928024,96739.0,96738.0,3e-07]
[1736852235308,0.84828024,96739.0,96738.0,3e-07]
[1736852235892,0.85428024,96739.0,96738.0,3e-07]
[1736852236209,0.84528024,96739.0,96738.0,3e-07]
[1736852236470,0.85428024,96739.0,96738.0,3e-07]
[1736852236644,0.8753696,96739.0,96738.0,3e-07]
[1736852236999,0.8693696,96739.0,96738.0,3e-07]
[1736852237421,0.8763696,96739.0,96738.0,3e-07]
[1736852237643,0.90419973,96739.0,96738.0,3e-07]
[1736852238229,0.8763696,96739.0,96738.0,3e-07]
[1736852238640,0.67214268,96739.0,96738.0,3e-07]
[1736852238838,0.35515332,96739.0,96738.0,3e-07]
[1736852239425,0.47876174,96739.0,96738.0,3e-07]
[1736852239680,0.49615332,96739.0,96738.0,3e-07]
[1736852240017,0.52115332,96739.0,96738.0,3e-07]
[1736852240223,0.51215332,96739.0,96738.0,3e-07]
[1736852240446,0.51915332,96739.0,96738.0,3e-07]
[1736852240850,0.35853482,96739.0,96738.0,3e-07]
[1736852241057,0.2379264,96739.0,96738.0,3e-07]
[1736852241640,0.2699264,96739.0,96738.0,3e-07]
[1736852241840,0.2669264,96739.0,96738.0,3e-07]
[1736852242065,0.2579264,96739.0,96738.0,3e-07]
[1736852242284,0.2639264,96739.0,96738.0,3e-07]
[1736852242598,0.24361482,96739.0,96738.0,3e-07]
[1736852242805,0.2639264,96739.0,96738.0,3e-07]
[1736852243159,0.2659264,96739.0,96738.0,3e-07]
[1736852243790,0.22261482,96739.0,96738.0,3e-07]
[1736852244029,0.01587382,96739.0,96738.0,0.00714372]
[1736852244209,0.01587382,96739.0,96738.0,3e-07]
[1736852244412,0.01587382,96739.0,96738.0,0.00714372]
[1736852244620,0.00979382,96739.0,96738.0,0.00714372]
[1736852244817,0.01587382,96739.0,96738.0,0.00714372]
[1736852245466,0.00979382,96739.0,96738.0,0.00714372]
[1736852245665,0.01587382,96739.0,96738.0,3e-07]
[1736852251412,0.0591854,96739.0,96738.0,3e-07]
[1736852253185,0.16341232,96739.0,96738.0,3e-07]
[1736852253333,0.16141232,96739.0,96738.0,3e-07]
[1736852253533,0.38957355,96739.0,96738.0,3e-07]
[1736852253790,0.39341232,96739.0,96738.0,3e-07]
[1736852254157,0.39141232,96739.0,96738.0,3e-07]
[1736852254672,0.39341232,96739.0,96738.0,3e-07]
[1736852255076,0.4839687,96739.0,96738.0,3e-07]
[1736852255271,0.4869687,96739.0,96738.0,3e-07]
[1736852255606,0.59119562,96739.0,96738.0,3e-07]
[1736852256032,0.677752,96739.0,96738.0,3e-07]
[1736852256238,0.684752,96739.0,96738.0,3e-07]
[1736852256782,0.73103019,96739.0,96738.0,3e-07]
[1736852257120,0.72403019,96739.0,96738.0,3e-07]
[1736852257449,0.73003019,96739.0,96738.0,3e-07]
[1736852257719,0.76933019,96739.0,96738.0,3e-07]
[1736852257926,0.53793924,96739.0,96738.0,3e-07]
[1736852258134,0.54093924,96739.0,96738.0,3e-07]
[1736852258541,0.413637,96703.0,96700.0,0.01957983]
[1736852258750,0.206823,96701.0,96700.0,0.01957983]
[1736852258951,0.206823,96701.0,96700.0,0.01962981]
[1736852259411,0.20676822,96701.0,96700.0,0.01962981]
[1736852259950,0.23140045,96729.0,96700.0,0.33068073]
[1736852260098,0.23140045,96729.0,96713.0,0.0037]
[1736852260099,0.18512036,96726.0,96713.0,0.0037]
[1736852260338,0.18512036,96726.0,96715.0,0.206793]
[1736852260536,0.18512036,96726.0,96721.0,1.5]
[1736852261061,0.12332973,96731.0,96721.0,1.5]
[1736852261062,0.009,96722.0,96721.0,1.5]
[1736852261474,0.011,96722.0,96721.0,1.5]
[1736852261860,0.009,96722.0,96721.0,1.5]
[1736852262081,0.009,96722.0,96717.0,0.0808]
[1736852262547,0.12332973,96731.0,96718.0,1.5]
[1736852262763,0.12332973,96731.0,96721.0,0.002]
[1736852262985,0.02031158,96732.0,96718.0,1.5]
[1736852263498,0.023,96731.0,96718.0,1.5]
[1736852263718,0.023,96731.0,96721.0,0.001]
[1736852264045,0.028,96731.0,96721.0,0.002]
[1736852264270,0.02031158,96732.0,96719.0,0.0010338]
[1736852264460,0.001,96732.0,96726.0,0.206768]
[1736852264665,0.00708,96732.0,96726.0,0.206768]
[1736852265069,0.00608,96732.0,96726.0,0.206768]
[1736852265336,0.001,96731.0,96726.0,0.206768]
[1736852265489,0.001,96731.0,96726.0,0.413537]
[1736852265694,0.005,96731.0,96726.0,0.413537]
[1736852265894,0.005,96731.0,96718.0,1.5]
[1736852265895,0.001,96731.0,96718.0,1.5]
[1736852266501,0.001,96731.0,96719.0,0.206784]
[1736852266737,0.00608,96730.0,96719.0,0.206784]
[1736852267343,0.00608,96730.0,96718.0,1.5]
[1736852267583,0.00608,96730.0,96726.0,0.002]
[1736852269036,0.00608,96730.0,96719.0,0.206784]
[1736852269222,0.00608,96730.0,96720.0,0.00728374]
[1736852269801,0.00608,96730.0,96720.0,0.01695886]
[1736852270123,0.00608,96729.0,96726.0,0.206768]
[1736852270507,0.00608,96729.0,96727.0,0.00723715]
[1736852270921,0.00608,96729.0,96725.0,0.206771]
[1736852271122,0.00608,96729.0,96728.0,0.00719748]
[1736852271308,0.00608,96729.0,96726.0,0.001]
[1736852271486,0.00608,96729.0,96728.0,0.00719748]
[1736852271692,0.00608,96729.0,96727.0,0.00720413]
[1736852271897,0.00608,96729.0,96726.0,0.001]
[1736852271898,0.00608,96729.0,96728.0,0.00719748]
[1736852272317,0.00608,96729.0,96727.0,0.002]
[1736852272521,0.00608,96729.0,96728.0,0.00719748]
[1736852272987,0.02908,96729.0,96728.0,0.00719748]
[1736852273158,0.1536185,96729.0,96728.0,0.00719748]
[1736852273402,0.1536185,96729.0,96702.0,0.0465]
[1736852273403,0.023,96726.0,96709.0,0.00967648]
[1736852273604,0.023,96718.0,96709.0,0.00967648]
[1736852273980,0.023,96720.0,96710.0,0.00731325]
[1736852274413,0.00608,96729.0,96710.0,0.00731325]
[1736852274414,0.00179362,96730.0,96712.0,0.253299]
[1736852274616,0.00179362,96730.0,96729.0,0.206763]
[1736852274813,0.00179362,96730.0,96729.0,1.706763]
[1736852275022,0.00179362,96730.0,96729.0,0.21396371]
[1736852275697,0.00179362,96730.0,96729.0,0.28916371]
[1736852275900,0.00179362,96730.0,96729.0,0.29216371]
[1736852276305,0.00179362,96730.0,96729.0,0.29884019]
[1736852276508,0.00279362,96730.0,96729.0,0.30184019]
[1736852277121,0.00279362,96730.0,96729.0,0.30384019]
[1736852278244,0.00279362,96730.0,96729.0,0.30184019]
[1736852278587,0.00179362,96730.0,96729.0,0.29884019]
[1736852279411,0.00279362,96730.0,96729.0,0.30184019]
[1736852279635,0.00279362,96730.0,96729.0,0.31403998]
[1736852289054,0.00279362,96730.0,96729.0,0.32952235]
[1736852289599,0.00279362,96730.0,96729.0,1.82952235]
[1736852296125,0.00179362,96730.0,96729.0,1.82652235]
[1736852296297,0.00179362,96730.0,96729.0,1.82452235]
[1736852296500,0.00279362,96730.0,96729.0,1.82752235]
[1736852296700,0.00279362,96730.0,96729.0,1.82952235]
[1736852297992,0.00279362,96730.0,96729.0,1.75432235]
[1736852298850,0.00279362,96730.0,96729.0,0.25432235]
[1736852299060,0.00279362,96730.0,96729.0,0.04755935]
[1736852299703,0.00279362,96730.0,96729.0,0.04255935]
[1736852299916,0.00179362,96730.0,96729.0,0.04255935]
[1736852300117,0.00279362,96730.0,96729.0,0.04755935]
[1736852302545,0.00279362,96730.0,96729.0,1.54755935]
[1736852305773,0.00279362,96730.0,96729.0,0.04755935]
[1736852306187,0.00279362,96730.0,96729.0,1.54755935]
[1736852311743,0.00279362,96730.0,96729.0,1.54555935]
[1736852312213,0.00279362,96730.0,96729.0,1.54755935]
[1736852312597,0.00279362,96730.0,96729.0,1.54555935]
[1736852312844,0.00279362,96730.0,96729.0,1.54755935]
[1736852333048,0.00279362,96730.0,96729.0,0.03735956]
[1736852333247,0.05463362,96730.0,96729.0,0.03735956]
[1736852333464,0.1499452,96730.0,96729.0,0.03735956]
[1736852333628,0.1499452,96730.0,96729.0,0.03015885]
[1736852334016,0.1489452,96730.0,96729.0,0.02515885]
[1736852334219,0.24150538,96730.0,96729.0,0.002]
[1736852335050,0.1489452,96730.0,96729.0,0.001]
[1736852335687,0.1489452,96730.0,96722.0,0.206776]
[1736852335908,0.1489452,96730.0,96723.0,0.00719351]
[1736852336604,0.02031158,96727.0,96723.0,0.00719351]
[1736852336809,0.02031158,96727.0,96724.0,0.00969167]
[1736852337360,0.02031158,96729.0,96724.0,0.00969167]
[1736852337566,0.02031158,96728.0,96724.0,0.00969167]
[1736852337763,0.02031158,96729.0,96724.0,0.00969167]
[1736852337991,0.02031158,96729.0,96725.0,0.00969167]
[1736852338211,0.02031158,96727.0,96725.0,0.00969167]
[1736852338369,0.02031158,96728.0,96725.0,0.00969167]
[1736852338829,0.02031158,96727.0,96725.0,0.00969167]
[1736852339426,0.02031158,96727.0,96724.0,0.001]
[1736852339642,0.02031158,96727.0,96719.0,0.206784]
[1736852340136,0.02031158,96727.0,96720.0,0.0072292]
[1736852340338,0.02031158,96727.0,96720.0,0.01691865]
[1736852340542,0.02031158,96727.0,96721.0,0.20678]
[1736852340719,0.02031158,96727.0,96723.0,0.206776]
[1736852340922,0.02031158,96727.0,96725.0,0.206771]
[1736852340923,0.02231158,96727.0,96725.0,0.206771]
[1736852341305,0.00783362,96730.0,96727.0,0.206767]
[1736852341306,0.00179362,96730.0,96727.0,0.206767]
[1736852341508,0.00179362,96730.0,96728.0,1.5]
[1736852341639,0.00179362,96730.0,96728.0,1.50717595]
[1736852342053,0.00179362,96730.0,96729.0,0.206763]
[1736852342342,0.00179362,96730.0,96729.0,0.2139323]
[1736852342572,0.00179362,96730.0,96729.0,0.2391229]
[1736852342726,0.00179362,96730.0,96729.0,1.7391229]
[1736852343649,0.00179362,96730.0,96729.0,1.7411229]
[1736852343971,0.00179362,96730.0,96729.0,1.7391229]
[1736852344169,0.00179362,96730.0,96729.0,1.7411229]
[1736852344627,0.00279362,96730.0,96729.0,1.7411229]
[1736852345196,0.00179362,96730.0,96729.0,1.7411229]
[1736852345857,0.00179362,96730.0,96729.0,0.2441229]
[1736852346435,0.00179362,96730.0,96729.0,1.7441229]
[1736852347041,0.00179362,96730.0,96729.0,1.75432153]
[1736852349512,0.00179362,96730.0,96729.0,0.25432153]
[1736852349882,0.00179362,96730.0,96729.0,1.75432153]
[1736852351861,0.00179362,96730.0,96729.0,0.25432153]
[1736852354735,0.00179362,96730.0,96729.0,1.75432153]
[1736852359385,0.08339362,96730.0,96729.0,0.25432153]
[1736852359554,0.08339362,96730.0,96729.0,0.04755853]
[1736852359754,0.00179362,96730.0,96729.0,0.04755853]
[1736852363206,0.00179362,96730.0,96729.0,0.03205738]
[1736852363544,0.00179362,96730.0,96729.0,0.02185875]
[1736852363696,0.05049362,96730.0,96729.0,0.02185875]
[1736852363905,0.05049362,96730.0,96729.0,0.01468945]
[1736852364115,0.05049362,96730.0,96729.0,0.0218516]
[1736852364562,0.00179362,96730.0,96729.0,0.0218516]
[1736852367512,0.00179362,96730.0,96729.0,1.5218516]
[1736852367667,0.00179362,96730.0,96729.0,1.5198516]
[1736852368064,0.00179362,96730.0,96729.0,1.5208516]
[1736852368441,0.00179362,96730.0,96729.0,1.5178516]
[1736852368922,0.00179362,96730.0,96729.0,1.5198516]
[1736852370212,0.00179362,96730.0,96729.0,1.53536136]
[1736852370767,0.00179362,96730.0,96729.0,0.03536136]
[1736852370948,0.00179362,96730.0,96729.0,0.036395]
[1736852371151,0.00179362,96730.0,96729.0,1.53536136]
[1736852372565,0.00953379,96730.0,96729.0,1.53536136]
[1736852375006,0.00953379,96730.0,96729.0,0.03536136]
[1736852375409,0.00953379,96730.0,96729.0,1.53536136]
[1736852378564,0.00953379,96730.0,96729.0,0.03536136]
[1736852379349,0.13723379,96730.0,96729.0,0.02819921]
[1736852379913,0.13723379,96730.0,96729.0,0.01268945]
[1736852382140,0.36430637,96730.0,96729.0,0.01268945]
[1736852382344,0.13723379,96730.0,96729.0,0.01268945]
[1736852382551,0.09213379,96730.0,96729.0,0.003]